[Event "10th LBHM Open 2024"]
[Site "Pune"]
[Date "2024.05.21"]
[Round "6.6"]
[White "Banik Hrishikesh Kumar"]
[Black "Dutta, Joydeep"]
[Result "1/2-1/2"]
[ECO "C54"]
[WhiteElo "1869"]
[BlackElo "2073"]
[PlyCount "48"]
[EventDate "2024.05.21"]
[EventType "swiss"]
[EventCountry "IND"]
[TimeControl "5400+30"]

1. e4 {[%emt 0:00:14]} e5 {[%emt 0:00:43]} 2. Nf3 {[%emt 0:00:09]} Nc6 {[%emt 0:00:05]} 3. Bc4 {[%emt 0:00:15]} Nf6 {[%emt 0:00:07]} 4. d3 {[%emt 0:00:05]} Bc5 {[%emt 0:00:05]} 5. c3 {[%emt 0:00:23]} d6 {[%emt 0:00:02]} 6. O-O {[%emt 0:00:14]} O-O {[%emt 0:05:52]} 7. Bb3 {[%emt 0:00:13]} a6 {[%emt 0:00:41]} 8. Nbd2 {[%emt 0:00:11]} Ba7 {[%emt 0:00:37]} 9. h3 {[%emt 0:00:47]} Nh5 {[%emt 0:00:24]} 10. Nc4 {[%emt 0:03:53]} Qf6 {[%emt 0:03:09]} 11. Ne3 {[%emt 0:00:27]} Nf4 {[%emt 0:01:43]} 12. Nd5 {[%emt 0:00:19]} Nxd5 {[%emt 0:00:58]} 13. exd5 {[%emt 0:00:07]} Nb8 {[%emt 0:00:52]} 14. d4 {[%emt 0:23:56]} exd4 {[%emt 0:09:20]} 15. Nxd4 {[%emt 0:00:40]} Nd7 {[%emt 0:10:17]} 16. Be3 {[%emt 0:03:22]} Re8 {[%emt 0:05:21]} 17. Qd2 {[%emt 0:09:01]} Nf8 {[%emt 0:07:43]} 18. Rae1 {[%emt 0:11:22]} Bd7 {[%emt 0:00:51]} 19. Bg5 {[%emt 0:12:29]} Qg6 {[%emt 0:00:29]} 20. Bc2 {[%emt 0:00:10]} Qh5 {[%emt 0:00:53]} 21. Bd1 {[%emt 0:01:08]} Qg6 {[%emt 0:00:03]} 22. Bc2 {[%emt 0:00:15]} Qh5 {[%emt 0:00:03]} 23. Bd1 {[%emt 0:00:13]} Qg6 {[%emt 0:00:07]} 24. Bc2 {[%emt 0:00:19]} Qh5 {[%emt 0:00:03]} 1/2-1/2

[Event "10th LBHM Open 2024"]
[Site "Pune"]
[Date "2024.05.21"]
[Round "6.7"]
[White "Samuel Stephen Noble S"]
[Black "Bhosale Shriraj"]
[Result "0-1"]
[ECO "A21"]
[WhiteElo "1869"]
[BlackElo "2036"]
[PlyCount "82"]
[EventDate "2024.05.21"]
[EventType "swiss"]
[EventCountry "IND"]
[TimeControl "5400+30"]

1. Nf3 {[%emt 0:00:06]} g6 {[%emt 0:03:29]} 2. g3 {[%emt 0:00:26]} Bg7 {[%emt 0:00:04]} 3. Bg2 {[%emt 0:00:08]} e5 {[%emt 0:00:14]} 4. d3 {[%emt 0:00:31]} d6 {[%emt 0:00:30]} 5. c4 {[%emt 0:00:15]} Ne7 {[%emt 0:00:28]} 6. Nc3 {[%emt 0:01:19]} O-O {[%emt 0:00:07]} 7. Rb1 {[%emt 0:00:47]} f5 {[%emt 0:00:25]} 8. e3 {[%emt 0:00:42]} c6 {[%emt 0:00:14]} 9. O-O {[%emt 0:01:25]} h6 {[%emt 0:00:32]} 10. Ne1 {[%emt 0:04:12]} Be6 {[%emt 0:00:42]} 11. f4 {[%emt 0:11:38]} exf4 {[%emt 0:01:37]} 12. gxf4 {[%emt 0:00:10]} d5 {[%emt 0:00:51]} 13. cxd5 {[%emt 0:08:06]} Nxd5 {[%emt 0:00:28]} 14. Qd2 {[%emt 0:06:36]} Nxe3 {[%emt 0:28:44]} 15. Qe2 {[%emt 0:02:00]} Nxf1 {[%emt 0:00:34]} 16. Qxe6+ {[%emt 0:01:00]} Kh7 {[%emt 0:00:04]} 17. Kxf1 {[%emt 0:01:59]} Re8 {[%emt 0:00:02]} 18. Qb3 {[%emt 0:06:23]} Nd7 {[%emt 0:00:29]} 19. Bd2 {[%emt 0:07:20]} Nf6 {[%emt 0:05:11]} 20. Qd1 {[%emt 0:14:53]} Ng4 {[%emt 0:07:04]} 21. h3 {[%emt 0:04:44]} Qh4 22. hxg4 {[%emt 0:13:39]} Bd4 {[%emt 0:04:12]} 23. Be3 {[%emt 0:04:03]} Bxe3 {[%emt 0:00:05]} 24. Qc2 {[%emt 0:01:52]} fxg4 {[%emt 0:00:33]} 25. Ne4 {[%emt 0:01:07]} Rf8 {[%emt 0:01:03]} 26. Ke2 {[%emt 0:00:48]} Bxf4 {[%emt 0:01:18]} 27. Qb3 {[%emt 0:01:18]} Qe7 {[%emt 0:01:11]} 28. Nc2 {[%emt 0:01:00]} h5 {[%emt 0:00:39]} 29. Rh1 {[%emt 0:02:45]} Rad8 {[%emt 0:01:10]} 30. a3 {[%emt 0:02:49]} Bh6 {[%emt 0:00:26]} 31. Qc4 {[%emt 0:01:02]} g3 {[%emt 0:01:34]} 32. Bf3 {[%emt 0:00:34]} Qe5 {[%emt 0:00:56]} 33. Qb4 {[%emt 0:00:47]} Rf7 {[%emt 0:00:21]} 34. Rh3 {[%emt 0:00:28]} Qf5 {[%emt 0:01:26]} 35. Rxg3 {[%emt 0:00:32]} h4 {[%emt 0:00:09]} 36. Nd4 {[%emt 0:01:06]} Rxd4 {[%emt 0:00:12]} 37. Qxd4 {[%emt 0:00:00]} hxg3 {[%emt 0:00:06]} 38. Bg2 {[%emt 0:00:00]} Qf4 {[%emt 0:01:39]} 39. Qc4 {[%emt 0:00:48]} Qe3+ {[%emt 0:00:51]} 40. Kd1 {[%emt 0:00:04]} Rf2 {[%emt 0:00:06]} 41. Qb4 {[%emt 0:00:46]} Qe2# {[%emt 0:00:08]} 0-1

[Event "10th LBHM Open 2024"]
[Site "Pune"]
[Date "2024.05.21"]
[Round "6.8"]
[White "Arpith S Bijoy"]
[Black "Sherla Prathamesh"]
[Result "1/2-1/2"]
[ECO "A01"]
[WhiteElo "2011"]
[BlackElo "1855"]
[PlyCount "90"]
[EventDate "2024.05.21"]
[EventType "swiss"]
[EventCountry "IND"]
[TimeControl "5400+30"]

1. b3 {[%emt 0:06:06]} c5 {[%emt 0:05:35]} 2. Bb2 {[%emt 0:00:12]} Nc6 {[%emt 0:00:08]} 3. e3 {[%emt 0:00:05]} e5 {[%emt 0:00:09]} 4. c4 {[%emt 0:00:57]} g6 {[%emt 0:01:04]} 5. Nc3 {[%emt 0:18:25]} Bg7 {[%emt 0:00:51]} 6. g3 Nge7 {[%emt 0:03:19]} 7. h4 {[%emt 0:07:25]} h6 {[%emt 0:06:41]} 8. h5 {[%emt 0:06:53]} g5 {[%emt 0:01:31]} 9. f4 {[%emt 0:03:22]} gxf4 {[%emt 0:21:59]} 10. gxf4 {[%emt 0:00:10]} d6 {[%emt 0:02:04]} 11. Qf3 {[%emt 0:07:43]} Be6 {[%emt 0:04:27]} 12. Bh3 {[%emt 0:04:39]} f5 {[%emt 0:02:59]} 13. O-O-O {[%emt 0:09:29]} Qd7 {[%emt 0:03:26]} 14. Nge2 {[%emt 0:08:10]} O-O-O {[%emt 0:06:41]} 15. d4 exd4 {[%emt 0:04:48]} 16. exd4 {[%emt 0:01:15]} Bxd4 {[%emt 0:03:11]} 17. Rhe1 {[%emt 0:07:35]} d5 {[%emt 0:11:54]} 18. Na4 {[%emt 0:06:06]} Bxb2+ {[%emt 0:03:27]} 19. Kxb2 {[%emt 0:00:03]} b6 {[%emt 0:02:05]} 20. Nac3 {[%emt 0:01:35]} d4 {[%emt 0:02:38]} 21. Nb5 {[%emt 0:00:17]} a6 {[%emt 0:02:48]} 22. Na3 {[%emt 0:05:42]} Qd6 {[%emt 0:02:45]} 23. Nc1 {[%emt 0:00:28]} Bd7 {[%emt 0:03:26]} 24. Bg2 {[%emt 0:00:29]} Ng8 {[%emt 0:01:25]} 25. Nd3 {[%emt 0:01:03]} Nf6 {[%emt 0:00:42]} 26. Nb1 Rhg8 {[%emt 0:02:30]} 27. Ne5 {[%emt 0:01:45]} Ne4 {[%emt 0:00:34]} 28. Nd2 {[%emt 0:00:35]} Nxe5 {[%emt 0:00:29]} 29. fxe5 {[%emt 0:00:02]} Qxe5 {[%emt 0:00:44]} 30. Nxe4 {[%emt 0:00:10]} fxe4 {[%emt 0:00:06]} 31. Rxe4 {[%emt 0:00:06]} Qf5 {[%emt 0:00:51]} 32. Qe2 {[%emt 0:03:30]} Rxg2 {[%emt 0:00:41]} 33. Qxg2 {[%emt 0:00:06]} Bc6 {[%emt 0:00:06]} 34. Rde1 {[%emt 0:00:06]} Bxe4 {[%emt 0:00:42]} 35. Rxe4 {[%emt 0:00:06]} d3 {[%emt 0:00:34]} 36. Re1 {[%emt 0:00:18]} Qf6+ {[%emt 0:00:20]} 37. Ka3 {[%emt 0:00:14]} Kb8 {[%emt 0:00:44]} 38. Rf1 {[%emt 0:02:50]} Qd6 {[%emt 0:00:33]} 39. Rf7 {[%emt 0:00:39]} Rd7 {[%emt 0:00:12]} 40. Qg8+ {[%emt 0:00:22]} Kb7 {[%emt 0:00:43]} 41. Qg6 {[%emt 0:01:29]} Kc7 {[%emt 0:00:35]} 42. Rf6 {[%emt 0:00:08]} Qxf6 {[%emt 0:00:30]} 43. Qxf6 {[%emt 0:00:08]} d2 {[%emt 0:00:05]} 44. Qf4+ {[%emt 0:00:21]} Rd6 {[%emt 0:00:43]} 45. Qf7+ {[%emt 0:01:02]} Rd7 {[%emt 0:01:15]} 1/2-1/2

[Event "10th LBHM Open 2024"]
[Site "Pune"]
[Date "2024.05.21"]
[Round "6.9"]
[White "Gyana Sai Santhosh M"]
[Black "Suraj Dahiya"]
[Result "1-0"]
[ECO "C06"]
[WhiteElo "1874"]
[BlackElo "1892"]
[PlyCount "89"]
[EventDate "2024.05.21"]
[EventType "swiss"]
[EventCountry "IND"]
[TimeControl "5400+30"]

1. e4 {[%emt 0:00:33]} e6 {[%emt 0:00:07]} 2. d4 {[%emt 0:00:15]} d5 {[%emt 0:00:08]} 3. Nd2 {[%emt 0:00:05]} Nf6 {[%emt 0:00:08]} 4. Bd3 {[%emt 0:02:09]} c5 5. e5 {[%emt 0:03:21]} Nfd7 {[%emt 0:00:10]} 6. c3 {[%emt 0:00:04]} Nc6 {[%emt 0:00:07]} 7. Ne2 {[%emt 0:00:11]} cxd4 {[%emt 0:00:08]} 8. cxd4 {[%emt 0:00:05]} f6 {[%emt 0:00:07]} 9. exf6 {[%emt 0:03:25]} Nxf6 {[%emt 0:00:17]} 10. Nf3 {[%emt 0:01:57]} Bd6 {[%emt 0:00:02]} 11. O-O {[%emt 0:02:17]} Qc7 {[%emt 0:00:04]} 12. Re1 {[%emt 0:02:42]} O-O {[%emt 0:00:50]} 13. Bg5 {[%emt 0:08:34]} h6 {[%emt 0:00:16]} 14. Bh4 {[%emt 0:00:13]} Nh5 {[%emt 0:00:06]} 15. Bg6 {[%emt 0:07:10]} Rxf3 {[%emt 0:00:31]} 16. gxf3 {[%emt 0:01:28]} Bxh2+ {[%emt 0:00:52]} 17. Kg2 {[%emt 0:03:17]} Nf4+ {[%emt 0:00:17]} 18. Nxf4 {[%emt 0:00:05]} Qxf4 {[%emt 0:04:48]} 19. Bg3 {[%emt 0:00:30]} Bxg3 {[%emt 0:01:24]} 20. fxg3 {[%emt 0:00:05]} Qf6 {[%emt 0:01:30]} 21. Qd3 {[%emt 0:05:48]} Nxd4 {[%emt 0:04:26]} 22. Rac1 {[%emt 0:09:52]} e5 {[%emt 0:18:15]} 23. Rc7 {[%emt 0:07:39]} Be6 {[%emt 0:02:31]} 24. Rxb7 {[%emt 0:02:30]} Rf8 {[%emt 0:00:25]} 25. Rf1 {[%emt 0:00:52]} Bc8 {[%emt 0:07:53]} 26. Rxa7 {[%emt 0:01:59]} Qe6 {[%emt 0:05:07]} 27. g4 {[%emt 0:05:58]} Qc6 {[%emt 0:16:04]} 28. f4 {[%emt 0:13:02]} Bxg4 {[%emt 0:10:37]} 29. Bh7+ {[%emt 0:03:07]} Kh8 {[%emt 0:00:26]} 30. Qg6 {[%emt 0:00:03]} Qxg6 {[%emt 0:04:33]} 31. Bxg6 {[%emt 0:00:04]} e4 {[%emt 0:00:34]} 32. Ra5 {[%emt 0:07:00]} Nf5 {[%emt 0:07:43]} 33. Bxf5 {[%emt 0:01:23]} Rxf5 {[%emt 0:00:03]} 34. Kg3 {[%emt 0:01:18]} h5 {[%emt 0:01:57]} 35. Re1 {[%emt 0:04:27]} Bf3 {[%emt 0:02:13]} 36. b4 {[%emt 0:00:37]} h4+ {[%emt 0:03:12]} 37. Kxh4 {[%emt 0:00:04]} Rxf4+ {[%emt 0:00:12]} 38. Kg5 {[%emt 0:01:22]} Rg4+ {[%emt 0:01:11]} 39. Kf5 {[%emt 0:00:02]} d4 {[%emt 0:01:01]} 40. Rd5 {[%emt 0:04:19]} d3 {[%emt 0:03:45]} 41. Rd8+ {[%emt 0:00:08]} Kh7 {[%emt 0:00:07]} 42. Rh1+ {[%emt 0:00:26]} Bxh1 {[%emt 0:02:10]} 43. Kxg4 {[%emt 0:00:01]} Bf3+ {[%emt 0:00:01]} 44. Kf4 {[%emt 0:00:21]} g5+ {[%emt 0:04:08]} 45. Kxg5 {[%emt 0:00:22]} 1-0

[Event "10th LBHM Open 2024"]
[Site "Pune"]
[Date "2024.05.21"]
[Round "6.10"]
[White "Andalamala Hemal Varshan"]
[Black "Singla Aaryan"]
[Result "0-1"]
[ECO "B30"]
[WhiteElo "1890"]
[BlackElo "1798"]
[PlyCount "78"]
[EventDate "2024.05.21"]
[EventType "swiss"]
[EventCountry "IND"]
[TimeControl "5400+30"]

1. e4 {[%emt 0:05:30]} c5 {[%emt 0:00:05]} 2. Nf3 {[%emt 0:00:10]} Nc6 {[%emt 0:00:02]} 3. Bb5 {[%emt 0:00:07]} e6 {[%emt 0:00:04]} 4. O-O {[%emt 0:00:12]} Nge7 {[%emt 0:00:05]} 5. Re1 {[%emt 0:00:08]} Ng6 {[%emt 0:00:21]} 6. c3 {[%emt 0:10:43]} Qb6 {[%emt 0:05:39]} 7. Bf1 {[%emt 0:01:16]} Be7 {[%emt 0:03:51]} 8. d4 {[%emt 0:00:42]} cxd4 {[%emt 0:01:30]} 9. cxd4 {[%emt 0:00:07]} d5 10. exd5 {[%emt 0:10:38]} exd5 {[%emt 0:00:43]} 11. Nc3 {[%emt 0:00:08]} Be6 {[%emt 0:01:36]} 12. Be3 {[%emt 0:02:14]} O-O {[%emt 0:00:45]} 13. Qd2 {[%emt 0:01:08]} Rfd8 {[%emt 0:05:50]} 14. h3 {[%emt 0:01:06]} Rac8 {[%emt 0:02:39]} 15. Rac1 {[%emt 0:01:43]} Na5 {[%emt 0:05:14]} 16. Ng5 {[%emt 0:15:27]} Nf8 {[%emt 0:01:33]} 17. Nxe6 {[%emt 0:02:19]} Nxe6 {[%emt 0:01:21]} 18. Bd3 {[%emt 0:01:11]} Qd6 {[%emt 0:09:13]} 19. Qe2 {[%emt 0:03:11]} Bf6 {[%emt 0:08:28]} 20. Qg4 {[%emt 0:05:54]} g6 {[%emt 0:02:07]} 21. Rcd1 {[%emt 0:08:35]} Nc4 {[%emt 0:00:28]} 22. Bxc4 {[%emt 0:00:09]} Rxc4 {[%emt 0:00:07]} 23. Rd2 {[%emt 0:08:12]} a6 {[%emt 0:01:45]} 24. Red1 {[%emt 0:00:58]} b5 {[%emt 0:00:23]} 25. Qf3 {[%emt 0:04:10]} Bg7 {[%emt 0:01:17]} 26. Ne2 {[%emt 0:02:01]} Qd7 {[%emt 0:15:49]} 27. Nc1 {[%emt 0:10:31]} f5 28. g3 {[%emt 0:03:22]} Rf8 {[%emt 0:05:30]} 29. Nd3 {[%emt 0:02:13]} f4 {[%emt 0:01:11]} 30. Nxf4 {[%emt 0:00:45]} Nxf4 {[%emt 0:01:26]} 31. gxf4 {[%emt 0:00:11]} g5 {[%emt 0:13:22]} 32. Qg3 {[%emt 0:00:52]} gxf4 {[%emt 0:00:01]} 33. Bxf4 {[%emt 0:00:00]} Rc6 {[%emt 0:00:01]} 34. Kh2 {[%emt 0:00:17]} Qf5 {[%emt 0:02:05]} 35. Be3 {[%emt 0:01:18]} Rg6 {[%emt 0:00:01]} 36. Qh4 {[%emt 0:00:05]} Qf3 {[%emt 0:03:48]} 37. Rg1 {[%emt 0:00:18]} Rxg1 {[%emt 0:00:11]} 38. Kxg1 {[%emt 0:00:02]} Rf6 {[%emt 0:00:06]} 39. Kf1 {[%emt 0:01:29]} Qxe3 {[%emt 0:00:07]} 0-1

[Event "10th LBHM Open 2024"]
[Site "Pune"]
[Date "2024.05.21"]
[Round "7.1"]
[White "Aronyak Ghosh"]
[Black "Neelash Saha"]
[Result "1/2-1/2"]
[ECO "D36"]
[WhiteElo "2536"]
[BlackElo "2483"]
[PlyCount "131"]
[EventDate "2024.05.21"]
[EventType "swiss"]
[EventCountry "IND"]
[TimeControl "5400+30"]

1. c4 {[%emt 0:01:14]} e6 {[%emt 0:00:50]} 2. Nc3 {[%emt 0:00:54]} d5 {[%emt 0:00:13]} 3. d4 {[%emt 0:00:10]} Nf6 {[%emt 0:00:44]} 4. cxd5 {[%emt 0:02:22]} exd5 {[%emt 0:00:06]} 5. Bg5 {[%emt 0:00:05]} Nbd7 {[%emt 0:00:20]} 6. e3 {[%emt 0:00:17]} c6 {[%emt 0:00:23]} 7. Bd3 {[%emt 0:00:30]} Be7 {[%emt 0:00:06]} 8. h3 {[%emt 0:00:16]} Nf8 {[%emt 0:02:08]} 9. Nf3 {[%emt 0:06:17]} Ne6 {[%emt 0:01:45]} 10. Bh4 {[%emt 0:02:31]} g6 {[%emt 0:01:40]} 11. Qc2 {[%emt 0:11:30]} Ng7 {[%emt 0:01:38]} 12. g4 {[%emt 0:03:24]} h5 {[%emt 0:04:36]} 13. O-O-O {[%emt 0:01:18]} hxg4 {[%emt 0:11:20]} 14. Bxf6 {[%emt 0:05:40]} Bxf6 {[%emt 0:00:06]} 15. hxg4 {[%emt 0:00:04]} Ne6 {[%emt 0:00:27]} 16. Ne5 {[%emt 0:14:39]} Nf8 {[%emt 0:02:05]} 17. Be2 {[%emt 0:05:34]} Rxh1 {[%emt 0:07:40]} 18. Rxh1 {[%emt 0:00:03]} Bxe5 {[%emt 0:00:33]} 19. dxe5 {[%emt 0:00:02]} Qe7 {[%emt 0:00:05]} 20. f4 {[%emt 0:03:22]} f6 {[%emt 0:00:06]} 21. exf6 {[%emt 0:01:56]} Qxf6 {[%emt 0:04:47]} 22. Na4 {[%emt 0:02:05]} Qe7 {[%emt 0:02:19]} 23. Qc3 {[%emt 0:02:31]} Bd7 {[%emt 0:07:42]} 24. Nc5 {[%emt 0:03:58]} O-O-O {[%emt 0:00:08]} 25. Qa3 {[%emt 0:02:42]} a5 {[%emt 0:06:01]} 26. Rh3 {[%emt 0:07:24]} b6 {[%emt 0:05:53]} 27. Nxd7 {[%emt 0:00:22]} Kxd7 {[%emt 0:00:43]} 28. Qxe7+ {[%emt 0:00:48]} Kxe7 {[%emt 0:00:05]} 29. Bd3 {[%emt 0:00:35]} Kf6 {[%emt 0:02:24]} 30. Kd2 {[%emt 0:00:27]} Kg7 {[%emt 0:01:46]} 31. g5 {[%emt 0:01:03]} d4 {[%emt 0:03:39]} 32. Rh6 {[%emt 0:01:52]} dxe3+ {[%emt 0:00:27]} 33. Kxe3 {[%emt 0:00:05]} Rd5 {[%emt 0:00:23]} 34. Be4 {[%emt 0:01:14]} Rc5 {[%emt 0:03:16]} 35. Rh2 {[%emt 0:02:27]} Rc1 {[%emt 0:01:03]} 36. Rh1 {[%emt 0:01:29]} Rc4 {[%emt 0:00:48]} 37. Rd1 {[%emt 0:01:50]} Rb4 {[%emt 0:00:51]} 38. Rd6 {[%emt 0:01:26]} Rxb2 {[%emt 0:03:58]} 39. Rxc6 {[%emt 0:00:05]} Rxa2 {[%emt 0:00:07]} 40. Rxb6 {[%emt 0:00:26]} Ra3+ {[%emt 0:01:09]} 41. Bd3 {[%emt 0:03:05]} Ra4 {[%emt 0:02:18]} 42. Rc6 {[%emt 0:02:59]} Rb4 {[%emt 0:01:03]} 43. Rc7+ {[%emt 0:00:08]} Kh8 {[%emt 0:00:05]} 44. Rc8 {[%emt 0:00:05]} Kg7 {[%emt 0:00:05]} 45. Rc7+ {[%emt 0:00:05]} Kh8 {[%emt 0:00:04]} 46. Bc4 {[%emt 0:00:32]} a4 {[%emt 0:01:24]} 47. Rc8 {[%emt 0:00:03]} Kg7 {[%emt 0:00:09]} 48. Rc7+ {[%emt 0:00:03]} Kh8 {[%emt 0:00:03]} 49. Kd3 {[%emt 0:00:20]} Rb8 {[%emt 0:03:32]} 50. Ra7 {[%emt 0:00:45]} Rd8+ {[%emt 0:01:11]} 51. Ke3 {[%emt 0:00:20]} Rd7 {[%emt 0:00:19]} 52. Rxa4 {[%emt 0:00:09]} Kg7 {[%emt 0:00:08]} 53. Ra6 {[%emt 0:00:21]} Re7+ {[%emt 0:01:10]} 54. Kd4 {[%emt 0:00:12]} Rd7+ {[%emt 0:00:31]} 55. Kc5 {[%emt 0:01:25]} Rc7+ {[%emt 0:01:15]} 56. Rc6 {[%emt 0:06:45]} Rxc6+ {[%emt 0:00:39]} 57. Kxc6 {[%emt 0:00:01]} Nh7 {[%emt 0:00:06]} 58. Kd5 {[%emt 0:00:31]} Nf8 {[%emt 0:00:26]} 59. Kd6 {[%emt 0:00:05]} Nh7 {[%emt 0:00:25]} 60. Ke5 {[%emt 0:00:09]} Nf8 {[%emt 0:00:14]} 61. Be6 {[%emt 0:00:25]} Nh7 {[%emt 0:00:45]} 62. Kd6 {[%emt 0:01:55]} Nf8 {[%emt 0:00:41]} 63. f5 {[%emt 0:02:06]} Nh7 {[%emt 0:00:14]} 64. fxg6 {[%emt 0:00:11]} Kxg6 {[%emt 0:00:04]} 65. Bf5+ {[%emt 0:00:02]} Kxg5 {[%emt 0:00:06]} 66. Bxh7 {[%emt 0:00:02]} 1/2-1/2

[Event "10th LBHM Open 2024"]
[Site "Pune"]
[Date "2024.05.21"]
[Round "7.2"]
[White "Singla Aaryan"]
[Black "Ghosh, Diptayan"]
[Result "0-1"]
[ECO "E46"]
[WhiteElo "1798"]
[BlackElo "2564"]
[PlyCount "78"]
[EventDate "2024.05.21"]
[EventType "swiss"]
[EventCountry "IND"]
[TimeControl "5400+30"]

1. d4 {[%emt 0:11:13]} Nf6 {[%emt 0:00:24]} 2. c4 {[%emt 0:00:08]} e6 {[%emt 0:00:04]} 3. Nc3 {[%emt 0:00:27]} Bb4 {[%emt 0:00:06]} 4. e3 {[%emt 0:00:10]} O-O {[%emt 0:00:08]} 5. Nge2 {[%emt 0:00:02]} d5 {[%emt 0:00:13]} 6. a3 {[%emt 0:00:11]} Be7 {[%emt 0:00:04]} 7. Ng3 {[%emt 0:00:04]} b6 {[%emt 0:01:49]} 8. Be2 {[%emt 0:01:00]} Ba6 {[%emt 0:05:52]} 9. cxd5 {[%emt 0:06:09]} Bxe2 {[%emt 0:00:49]} 10. Qxe2 {[%emt 0:02:11]} exd5 {[%emt 0:00:05]} 11. O-O {[%emt 0:00:28]} Re8 {[%emt 0:00:22]} 12. b4 {[%emt 0:00:21]} Bd6 {[%emt 0:08:16]} 13. Nh5 {[%emt 0:14:45]} Nbd7 {[%emt 0:02:53]} 14. Nxf6+ {[%emt 0:00:25]} Nxf6 {[%emt 0:00:03]} 15. f3 {[%emt 0:00:16]} c5 {[%emt 0:08:55]} 16. bxc5 {[%emt 0:07:27]} bxc5 {[%emt 0:00:09]} 17. Qd3 {[%emt 0:01:47]} Rc8 {[%emt 0:21:44]} 18. Nb5 {[%emt 0:03:58]} c4 {[%emt 0:02:13]} 19. Qf5 {[%emt 0:02:15]} Rb8 {[%emt 0:05:53]} 20. Nc3 {[%emt 0:02:37]} Rb3 {[%emt 0:00:53]} 21. Qc2 {[%emt 0:02:53]} Qc7 {[%emt 0:05:13]} 22. h3 {[%emt 0:02:02]} Qc6 {[%emt 0:01:24]} 23. Bd2 {[%emt 0:07:16]} h6 {[%emt 0:03:43]} 24. Rfb1 {[%emt 0:01:34]} Reb8 {[%emt 0:01:31]} 25. Rxb3 {[%emt 0:06:52]} cxb3 {[%emt 0:00:51]} 26. Qd3 {[%emt 0:02:20]} Bc7 {[%emt 0:06:10]} 27. Rc1 {[%emt 0:06:42]} Ba5 {[%emt 0:04:24]} 28. Nb1 {[%emt 0:01:59]} Qb6 {[%emt 0:00:16]} 29. Rc5 {[%emt 0:01:33]} Bxd2 {[%emt 0:00:06]} 30. Qxd2 {[%emt 0:00:08]} Nd7 {[%emt 0:05:06]} 31. Rc3 {[%emt 0:01:58]} a5 {[%emt 0:01:12]} 32. a4 {[%emt 0:00:12]} Qb4 {[%emt 0:00:27]} 33. Rc7 {[%emt 0:00:19]} Qxa4 {[%emt 0:00:43]} 34. Nc3 {[%emt 0:15:48]} Qa1+ {[%emt 0:00:15]} 35. Kh2 {[%emt 0:00:00]} Nf6 {[%emt 0:00:13]} 36. Qd3 {[%emt 0:00:00]} Qa3 {[%emt 0:01:04]} 37. Rc5 {[%emt 0:00:00]} b2 {[%emt 0:07:07]} 38. Qc2 {[%emt 0:00:00]} g6 {[%emt 0:00:52]} 39. Qb1 {[%emt 0:00:00]} Kg7 {[%emt 0:00:33]} 0-1

[Event "10th LBHM Open 2024"]
[Site "Pune"]
[Date "2024.05.21"]
[Round "7.3"]
[White "Nitin, S.."]
[Black "Sharsha Backer"]
[Result "1-0"]
[ECO "B85"]
[WhiteElo "2356"]
[BlackElo "1997"]
[PlyCount "83"]
[EventDate "2024.05.21"]
[EventType "swiss"]
[EventCountry "IND"]
[TimeControl "5400+30"]

1. e4 {[%emt 0:00:34]} c5 {[%emt 0:10:34]} 2. Nc3 {[%emt 0:00:43]} Nc6 {[%emt 0:00:18]} 3. Bb5 {[%emt 0:00:53]} Nd4 {[%emt 0:00:29]} 4. Nf3 {[%emt 0:00:12]} e6 {[%emt 0:01:07]} 5. O-O {[%emt 0:07:20]} a6 {[%emt 0:00:19]} 6. Bd3 {[%emt 0:00:39]} Nc6 {[%emt 0:00:54]} 7. Be2 {[%emt 0:09:42]} Nf6 {[%emt 0:00:26]} 8. d4 {[%emt 0:00:14]} cxd4 {[%emt 0:00:04]} 9. Nxd4 {[%emt 0:00:05]} Qc7 {[%emt 0:00:19]} 10. Be3 {[%emt 0:02:39]} Be7 {[%emt 0:01:26]} 11. f4 {[%emt 0:06:04]} d6 {[%emt 0:00:51]} 12. a4 {[%emt 0:00:33]} O-O {[%emt 0:01:37]} 13. Nb3 {[%emt 0:07:55]} b6 {[%emt 0:00:36]} 14. g4 {[%emt 0:11:25]} Nd7 {[%emt 0:00:33]} 15. g5 {[%emt 0:00:57]} Re8 {[%emt 0:01:27]} 16. Bf3 {[%emt 0:10:24]} Bf8 {[%emt 0:01:13]} 17. Bg2 {[%emt 0:00:13]} Bb7 {[%emt 0:06:04]} 18. Rf3 {[%emt 0:06:00]} g6 {[%emt 0:01:46]} 19. Rh3 {[%emt 0:00:24]} Bg7 {[%emt 0:00:49]} 20. Qe1 {[%emt 0:01:36]} Nb4 {[%emt 0:05:34]} 21. Qf2 {[%emt 0:06:30]} Rab8 {[%emt 0:21:49]} 22. Rf1 {[%emt 0:02:35]} Ba8 {[%emt 0:01:48]} 23. Bd4 {[%emt 0:06:30]} Bxd4 {[%emt 0:25:02]} 24. Nxd4 {[%emt 0:00:11]} Qc5 {[%emt 0:04:26]} 25. Nd1 {[%emt 0:01:13]} Nc6 {[%emt 0:06:27]} 26. c3 {[%emt 0:00:21]} Nxd4 {[%emt 0:04:51]} 27. cxd4 {[%emt 0:00:07]} Qb4 {[%emt 0:00:09]} 28. Nc3 {[%emt 0:01:35]} Re7 {[%emt 0:01:57]} 29. f5 {[%emt 0:03:07]} exf5 {[%emt 0:00:24]} 30. exf5 {[%emt 0:00:01]} Bxg2 {[%emt 0:00:16]} 31. Kxg2 {[%emt 0:00:02]} Qc4 {[%emt 0:00:47]} 32. Qh4 {[%emt 0:00:21]} Nf8 {[%emt 0:01:29]} 33. f6 {[%emt 0:00:15]} Re2+ {[%emt 0:00:19]} 34. Nxe2 {[%emt 0:00:07]} Qxe2+ {[%emt 0:00:04]} 35. Rf2 {[%emt 0:00:09]} Qe6 {[%emt 0:00:39]} 36. Rff3 {[%emt 0:11:05]} h5 {[%emt 0:00:14]} 37. gxh6 {[%emt 0:00:41]} Nh7 {[%emt 0:01:13]} 38. Re3 {[%emt 0:00:23]} Qd5+ {[%emt 0:00:07]} 39. Kg1 {[%emt 0:02:32]} Rc8 {[%emt 0:00:14]} 40. Rc3 {[%emt 0:00:07]} Rxc3 {[%emt 0:01:14]} 41. Rxc3 {[%emt 0:00:32]} Ng5 {[%emt 0:00:25]} 42. h7+ {[%emt 0:00:07]} 1-0